[Event "Early-Titled-Tuesday-Blitz-March-19-2024"]
[Site "Chess.com"]
[Date "2024.03.19"]
[Round "1"]
[White "vladgoncharov"]
[Black "cristiano78"]
[Result "1-0"]
[WhiteElo "2623"]
[BlackElo "2237"]
[TimeControl "180+1"]
[EndTime "8:07:53 PDT"]
[Termination "vladgoncharov won on time"]

1. d4 {[%clk 0:02:59]} 1... Nf6 {[%clk 0:02:56.3]} 2. c4 {[%clk 0:02:58.7]} 2...
g6 {[%clk 0:02:55.7]} 3. Nc3 {[%clk 0:02:57.1]} 3... Bg7 {[%clk 0:02:54.9]} 4.
e4 {[%clk 0:02:53.1]} 4... d6 {[%clk 0:02:53.9]} 5. Nf3 {[%clk 0:02:47]} 5...
O-O {[%clk 0:02:43.7]} 6. Be2 {[%clk 0:02:45.9]} 6... e5 {[%clk 0:02:30.8]} 7.
O-O {[%clk 0:02:45]} 7... Nc6 {[%clk 0:02:29]} 8. d5 {[%clk 0:02:44.8]} 8... Ne7
{[%clk 0:02:28.6]} 9. Ne1 {[%clk 0:02:41.6]} 9... Ne8 {[%clk 0:02:26.7]} 10. Be3
{[%clk 0:02:38.9]} 10... f5 {[%clk 0:02:21.6]} 11. f3 {[%clk 0:02:37.7]} 11...
f4 {[%clk 0:02:21.1]} 12. Bf2 {[%clk 0:02:37.4]} 12... h5 {[%clk 0:02:19.7]} 13.
Nd3 {[%clk 0:02:34.1]} 13... g5 {[%clk 0:02:16.5]} 14. c5 {[%clk 0:02:31.6]}
14... a6 {[%clk 0:02:12.2]} 15. Rc1 {[%clk 0:02:28.7]} 15... Nf6 {[%clk
0:02:03.8]} 16. cxd6 {[%clk 0:02:20.3]} 16... cxd6 {[%clk 0:02:03]} 17. Na4
{[%clk 0:02:20.5]} 17... Ng6 {[%clk 0:01:58.8]} 18. Nb6 {[%clk 0:02:11.6]} 18...
Rb8 {[%clk 0:01:58.2]} 19. Nxc8 {[%clk 0:02:11]} 19... Rxc8 {[%clk 0:01:57.7]}
20. Rxc8 {[%clk 0:02:09.8]} 20... Qxc8 {[%clk 0:01:56.2]} 21. Qb3 {[%clk
0:02:07]} 21... Qd7 {[%clk 0:01:53.1]} 22. Rc1 {[%clk 0:02:05.3]} 22... Rc8
{[%clk 0:01:44.8]} 23. Rxc8+ {[%clk 0:01:59.4]} 23... Qxc8 {[%clk 0:01:44]} 24.
Qc3 {[%clk 0:01:59.6]} 24... Qd7 {[%clk 0:01:41.4]} 25. b3 {[%clk 0:01:50.8]}
25... g4 {[%clk 0:01:40.4]} 26. Bb6 {[%clk 0:01:40.4]} 26... gxf3 {[%clk
0:01:29.8]} 27. Bxf3 {[%clk 0:01:24.5]} 27... Nh4 {[%clk 0:01:28.5]} 28. Nf2
{[%clk 0:01:12.3]} 28... Ng4 {[%clk 0:01:10.1]} 29. a4 {[%clk 0:01:00.3]} 29...
Nxf2 {[%clk 0:01:07.2]} 30. Kxf2 {[%clk 0:00:40.2]} 30... Nxf3 {[%clk
0:01:06.2]} 31. Qxf3 {[%clk 0:00:39.9]} 31... Qc8 {[%clk 0:00:53.2]} 32. Qd3
{[%clk 0:00:22.2]} 32... Bf6 {[%clk 0:00:47.2]} 33. Qc4 {[%clk 0:00:20]} 33...
Qg4 {[%clk 0:00:39.2]} 34. Qe2 {[%clk 0:00:17.4]} 34... Bh4+ {[%clk 0:00:37.9]}
35. Kf1 {[%clk 0:00:17.5]} 35... Qc8 {[%clk 0:00:30.6]} 36. Qc4 {[%clk
0:00:15.1]} 36... Qxc4+ {[%clk 0:00:22.9]} 37. bxc4 {[%clk 0:00:14.6]} 37... Kf7
{[%clk 0:00:22.7]} 38. Bc7 {[%clk 0:00:14.3]} 38... Ke7 {[%clk 0:00:22.1]} 39.
c5 {[%clk 0:00:12.9]} 39... dxc5 {[%clk 0:00:20]} 40. Bxe5 {[%clk 0:00:12.9]}
40... Bg5 {[%clk 0:00:16.4]} 41. Bc3 {[%clk 0:00:12.4]} 41... Kd6 {[%clk
0:00:15.6]} 42. Ke2 {[%clk 0:00:11.5]} 42... b5 {[%clk 0:00:15.6]} 43. axb5
{[%clk 0:00:11.9]} 43... axb5 {[%clk 0:00:15.6]} 44. Bg7 {[%clk 0:00:12.3]}
44... c4 {[%clk 0:00:11.8]} 45. Bf8+ {[%clk 0:00:10.2]} 45... Ke5 {[%clk
0:00:11.7]} 46. Kf3 {[%clk 0:00:10.5]} 46... c3 {[%clk 0:00:02.3]} 47. Bb4
{[%clk 0:00:08.1]} 1-0

[Event "Early-Titled-Tuesday-Blitz-March-19-2024"]
[Site "Chess.com"]
[Date "2024.03.19"]
[Round "1"]
[White "Zapateado"]
[Black "Defend1r"]
[Result "0-1"]
[WhiteElo "2390"]
[BlackElo "2726"]
[TimeControl "180+1"]
[EndTime "8:07:55 PDT"]
[Termination "Defend1r won by checkmate"]

1. c4 {[%clk 0:02:48.1]} 1... c5 {[%clk 0:02:53.2]} 2. Nc3 {[%clk 0:02:47.8]}
2... Nf6 {[%clk 0:02:46.1]} 3. g3 {[%clk 0:02:47.9]} 3... Nc6 {[%clk 0:02:44.9]}
4. Bg2 {[%clk 0:02:47.6]} 4... e6 {[%clk 0:02:45.2]} 5. e4 {[%clk 0:02:47.3]}
5... g6 {[%clk 0:02:44]} 6. Nge2 {[%clk 0:02:47.8]} 6... Bg7 {[%clk 0:02:44.1]}
7. O-O {[%clk 0:02:48.1]} 7... Nd4 {[%clk 0:02:44.3]} 8. Nxd4 {[%clk 0:02:44.6]}
8... cxd4 {[%clk 0:02:45.2]} 9. Ne2 {[%clk 0:02:45.1]} 9... Ng8 {[%clk
0:02:35.1]} 10. d3 {[%clk 0:02:42.4]} 10... Ne7 {[%clk 0:02:27.7]} 11. b4 {[%clk
0:02:42.3]} 11... b5 {[%clk 0:02:18]} 12. cxb5 {[%clk 0:02:36]} 12... Rb8 {[%clk
0:02:05.1]} 13. a4 {[%clk 0:02:35.6]} 13... O-O {[%clk 0:01:50.7]} 14. f4 {[%clk
0:02:35.6]} 14... d6 {[%clk 0:01:49.6]} 15. Bb2 {[%clk 0:02:35.3]} 15... a6
{[%clk 0:01:48.5]} 16. Kh1 {[%clk 0:02:32.2]} 16... axb5 {[%clk 0:01:47.7]} 17.
a5 {[%clk 0:02:32.6]} 17... Nc6 {[%clk 0:01:46.2]} 18. Qd2 {[%clk 0:02:22.4]}
18... Bb7 {[%clk 0:01:24.4]} 19. Rac1 {[%clk 0:02:18.8]} 19... Qd7 {[%clk
0:01:18.6]} 20. f5 {[%clk 0:01:48]} 20... exf5 {[%clk 0:01:16.5]} 21. exf5
{[%clk 0:01:48.2]} 21... Ne5 {[%clk 0:01:03.7]} 22. Nxd4 {[%clk 0:01:37.2]}
22... Ng4 {[%clk 0:00:59.9]} 23. h3 {[%clk 0:00:43.1]} 23... Bxg2+ {[%clk
0:00:52.2]} 24. Qxg2 {[%clk 0:00:44]} 24... Ne3 {[%clk 0:00:51.6]} 25. Qd5
{[%clk 0:00:36.5]} 25... Nxf1 {[%clk 0:00:51.4]} 26. Rxf1 {[%clk 0:00:31.1]}
26... Be5 {[%clk 0:00:51.5]} 27. Bc1 {[%clk 0:00:16.2]} 27... Rbc8 {[%clk
0:00:49.1]} 28. Bh6 {[%clk 0:00:13.1]} 28... Rfe8 {[%clk 0:00:48.5]} 29. Qxb5
{[%clk 0:00:08.5]} 29... Qa7 {[%clk 0:00:30.9]} 30. Nc6 {[%clk 0:00:07.5]} 30...
Qa8 {[%clk 0:00:31.3]} 31. Rc1 {[%clk 0:00:06]} 31... Bxg3 {[%clk 0:00:26.9]}
32. Kg1 {[%clk 0:00:04.8]} 32... Rc7 {[%clk 0:00:21.2]} 33. d4 {[%clk
0:00:01.9]} 33... d5 {[%clk 0:00:14.4]} 34. Qxd5 {[%clk 0:00:02.1]} 34... Qc8
{[%clk 0:00:11.6]} 35. b5 {[%clk 0:00:01.8]} 35... Qb7 {[%clk 0:00:06.4]} 36.
Qc4 {[%clk 0:00:01.7]} 36... Rd7 {[%clk 0:00:06.2]} 37. d5 {[%clk 0:00:02.2]}
37... f6 {[%clk 0:00:03.8]} 38. b6 {[%clk 0:00:02.2]} 38... Be5 {[%clk
0:00:04.2]} 39. Qc5 {[%clk 0:00:02.6]} 39... Bd6 {[%clk 0:00:03.9]} 40. Qc4
{[%clk 0:00:02.8]} 40... gxf5 {[%clk 0:00:04.4]} 41. Qb5 {[%clk 0:00:03.2]}
41... Kh8 {[%clk 0:00:04.8]} 42. a6 {[%clk 0:00:03.7]} 42... Rg8+ {[%clk
0:00:05.4]} 43. Kf2 {[%clk 0:00:04.4]} 43... Qc8 {[%clk 0:00:05.9]} 44. b7
{[%clk 0:00:04.7]} 44... Qe8 {[%clk 0:00:05.9]} 45. Qc4 {[%clk 0:00:04.6]} 45...
Qh5 {[%clk 0:00:06.1]} 46. Qe2 {[%clk 0:00:04.9]} 46... Bg3+ {[%clk 0:00:06.3]}
47. Kf1 {[%clk 0:00:05]} 47... Qxh3+ {[%clk 0:00:06.7]} 48. Qg2 {[%clk
0:00:05.8]} 48... Qxh6 {[%clk 0:00:07.4]} 49. Qe2 {[%clk 0:00:06.2]} 49... Qxc1+
{[%clk 0:00:07.6]} 50. Kg2 {[%clk 0:00:06.3]} 50... Bd6+ {[%clk 0:00:08.3]} 51.
Kf3 {[%clk 0:00:06.6]} 51... Qc3+ {[%clk 0:00:08.5]} 52. Qe3 {[%clk 0:00:06.6]}
52... Rg3+ {[%clk 0:00:08.9]} 53. Kf2 {[%clk 0:00:07.4]} 53... Qxe3+ {[%clk
0:00:09.8]} 54. Kf1 {[%clk 0:00:07.8]} 54... Rg1# {[%clk 0:00:10.7]} 0-1

[Event "Early-Titled-Tuesday-Blitz-March-19-2024"]
[Site "Chess.com"]
[Date "2024.03.19"]
[Round "1"]
[White "mertfelin"]
[Black "GeorgiosSouleidis"]
[Result "1-0"]
[WhiteElo "2377"]
[BlackElo "2699"]
[TimeControl "180+1"]
[EndTime "8:07:55 PDT"]
[Termination "mertfelin won on time"]

1. e4 {[%clk 0:03:00.2]} 1... c5 {[%clk 0:02:58.8]} 2. Nf3 {[%clk 0:03:00.7]}
2... e6 {[%clk 0:02:59]} 3. b3 {[%clk 0:03:01.2]} 3... a6 {[%clk 0:02:57.2]} 4.
Bb2 {[%clk 0:03:01]} 4... Nc6 {[%clk 0:02:57.7]} 5. c4 {[%clk 0:03:01.6]} 5...
d6 {[%clk 0:02:52.9]} 6. g3 {[%clk 0:02:58.2]} 6... Nf6 {[%clk 0:02:52.8]} 7.
Nc3 {[%clk 0:02:57.2]} 7... Be7 {[%clk 0:02:52.2]} 8. Bg2 {[%clk 0:02:57.6]}
8... O-O {[%clk 0:02:52.2]} 9. O-O {[%clk 0:02:56.9]} 9... e5 {[%clk 0:02:47.3]}
10. d3 {[%clk 0:02:55.5]} 10... Bg4 {[%clk 0:02:47]} 11. Qe1 {[%clk 0:02:54.7]}
11... Qd7 {[%clk 0:02:35.4]} 12. Bc1 {[%clk 0:02:50.7]} 12... Bxf3 {[%clk
0:02:18.9]} 13. Bxf3 {[%clk 0:02:50.9]} 13... Nd4 {[%clk 0:02:19.6]} 14. Qd1
{[%clk 0:02:51.4]} 14... Ne8 {[%clk 0:02:12.2]} 15. Bg4 {[%clk 0:02:46.5]} 15...
Qd8 {[%clk 0:02:05.3]} 16. Nd5 {[%clk 0:02:45.7]} 16... Nc7 {[%clk 0:01:56.3]}
17. Nb6 {[%clk 0:02:46.1]} 17... Ra7 {[%clk 0:01:51]} 18. Be3 {[%clk 0:02:46.6]}
18... Nce6 {[%clk 0:01:47.7]} 19. Nd5 {[%clk 0:02:46.2]} 19... Bg5 {[%clk
0:01:43.3]} 20. Kg2 {[%clk 0:02:32.4]} 20... b5 {[%clk 0:01:38.8]} 21. Qd2
{[%clk 0:02:26.6]} 21... g6 {[%clk 0:01:20.6]} 22. f4 {[%clk 0:02:19.6]} 22...
exf4 {[%clk 0:01:08.5]} 23. gxf4 {[%clk 0:02:20.1]} 23... Bh6 {[%clk 0:01:05.2]}
24. f5 {[%clk 0:01:30.8]} 24... Bxe3 {[%clk 0:01:04.6]} 25. Qxe3 {[%clk
0:01:31.4]} 25... Nc7 {[%clk 0:00:53.8]} 26. f6 {[%clk 0:01:17]} 26... Nxd5
{[%clk 0:00:51.5]} 27. cxd5 {[%clk 0:01:14.3]} 27... Kh8 {[%clk 0:00:41.5]} 28.
Rac1 {[%clk 0:00:31.5]} 28... b4 {[%clk 0:00:39.3]} 29. Kh1 {[%clk 0:00:31.5]}
29... Rg8 {[%clk 0:00:39.3]} 30. Qf4 {[%clk 0:00:31.1]} 30... g5 {[%clk
0:00:34]} 31. Qe3 {[%clk 0:00:30.1]} 31... Qe8 {[%clk 0:00:33]} 32. e5 {[%clk
0:00:24.7]} 32... Qxe5 {[%clk 0:00:17.1]} 33. Qxe5 {[%clk 0:00:25.1]} 33... dxe5
{[%clk 0:00:18]} 34. Rxc5 {[%clk 0:00:25.8]} 34... h6 {[%clk 0:00:12.1]} 35. Kg2
{[%clk 0:00:23.9]} 35... Kh7 {[%clk 0:00:11.8]} 36. Bh5 {[%clk 0:00:24.5]} 36...
Ne2 {[%clk 0:00:08]} 37. Bxe2 {[%clk 0:00:11.4]} 37... Kg6 {[%clk 0:00:06.9]}
38. Rc6 {[%clk 0:00:07.8]} 38... Rd8 {[%clk 0:00:05.3]} 39. Bf3 {[%clk
0:00:07.3]} 39... h5 {[%clk 0:00:05.8]} 40. Be4+ {[%clk 0:00:07.7]} 40... Kh6
{[%clk 0:00:06.4]} 41. Rfc1 {[%clk 0:00:08.1]} 41... Rad7 {[%clk 0:00:03.8]} 42.
Rc7 {[%clk 0:00:08.6]} 42... g4 {[%clk 0:00:04]} 43. Rxd7 {[%clk 0:00:08.9]}
43... Rxd7 {[%clk 0:00:04.9]} 44. Rc6 {[%clk 0:00:08.9]} 44... a5 {[%clk
0:00:05.5]} 45. d6 {[%clk 0:00:09.4]} 45... Kg5 {[%clk 0:00:04.8]} 46. Ra6
{[%clk 0:00:08]} 46... Kxf6 {[%clk 0:00:04]} 47. Rxa5 {[%clk 0:00:06.9]} 47...
Rxd6 {[%clk 0:00:03.8]} 48. Rd5 {[%clk 0:00:07.5]} 48... Ra6 {[%clk 0:00:03.1]}
49. Rb5 {[%clk 0:00:07.1]} 49... Rxa2+ {[%clk 0:00:03.3]} 50. Kg3 {[%clk
0:00:07.7]} 1-0

[Event "Early-Titled-Tuesday-Blitz-March-19-2024"]
[Site "Chess.com"]
[Date "2024.03.19"]
[Round "1"]
[White "SashaKuzhilniy"]
[Black "itsdsyr"]
[Result "0-1"]
[WhiteElo "2603"]
[BlackElo "2243"]
[TimeControl "180+1"]
[EndTime "8:07:55 PDT"]
[Termination "itsdsyr won on time"]

1. d4 {[%clk 0:02:54]} 1... Nf6 {[%clk 0:02:58.8]} 2. Bg5 {[%clk 0:02:53.9]}
2... Ne4 {[%clk 0:02:53.3]} 3. h4 {[%clk 0:02:51.7]} 3... d5 {[%clk 0:02:50.3]}
4. Nd2 {[%clk 0:02:49.6]} 4... h6 {[%clk 0:02:42.3]} 5. Nxe4 {[%clk 0:02:44.5]}
5... dxe4 {[%clk 0:02:41.2]} 6. Bf4 {[%clk 0:02:44.5]} 6... Bf5 {[%clk
0:02:15.4]} 7. e3 {[%clk 0:02:41.3]} 7... Nd7 {[%clk 0:02:15.2]} 8. Ne2 {[%clk
0:02:35.9]} 8... Nf6 {[%clk 0:02:12.5]} 9. c4 {[%clk 0:02:24.8]} 9... e6 {[%clk
0:02:11.8]} 10. Nc3 {[%clk 0:02:22.6]} 10... c6 {[%clk 0:02:06.2]} 11. Be2
{[%clk 0:02:16]} 11... h5 {[%clk 0:02:01.8]} 12. Qb3 {[%clk 0:02:12]} 12... Qb6
{[%clk 0:01:58.6]} 13. c5 {[%clk 0:02:09]} 13... Qxb3 {[%clk 0:01:57.9]} 14.
axb3 {[%clk 0:02:09.9]} 14... a6 {[%clk 0:01:54.1]} 15. Ra4 {[%clk 0:02:02.4]}
15... Rd8 {[%clk 0:01:42.8]} 16. b4 {[%clk 0:01:53.4]} 16... Be7 {[%clk
0:01:39.6]} 17. Kd2 {[%clk 0:01:43.6]} 17... O-O {[%clk 0:01:37.3]} 18. Bg5
{[%clk 0:01:40.2]} 18... e5 {[%clk 0:01:33.9]} 19. Kc1 {[%clk 0:01:27.7]} 19...
exd4 {[%clk 0:01:33.3]} 20. exd4 {[%clk 0:01:28.6]} 20... Rxd4 {[%clk
0:01:30.9]} 21. Rd1 {[%clk 0:01:27.6]} 21... Rxd1+ {[%clk 0:01:28.8]} 22. Nxd1
{[%clk 0:01:28]} 22... Rd8 {[%clk 0:01:25.4]} 23. Ne3 {[%clk 0:01:26.4]} 23...
Be6 {[%clk 0:01:22.3]} 24. Bxh5 {[%clk 0:01:15.4]} 24... Nd5 {[%clk 0:00:58.5]}
25. Bxe7 {[%clk 0:01:05.7]} 25... Nxe7 {[%clk 0:00:59.4]} 26. b5 {[%clk
0:01:02.1]} 26... cxb5 {[%clk 0:00:48.2]} 27. Rxe4 {[%clk 0:01:02]} 27... Nd5
{[%clk 0:00:44.9]} 28. Bf3 {[%clk 0:00:42.9]} 28... Rc8 {[%clk 0:00:34.3]} 29.
b4 {[%clk 0:00:37.8]} 29... b6 {[%clk 0:00:31.1]} 30. Re5 {[%clk 0:00:19.9]}
30... Nxb4 {[%clk 0:00:26.7]} 31. Kd2 {[%clk 0:00:15.2]} 31... bxc5 {[%clk
0:00:25.3]} 32. g4 {[%clk 0:00:14.2]} 32... c4 {[%clk 0:00:20.4]} 33. Kc3 {[%clk
0:00:12.7]} 33... Nd3 {[%clk 0:00:20.4]} 34. Re4 {[%clk 0:00:11.1]} 34... Nxf2
{[%clk 0:00:20.4]} 35. Rd4 {[%clk 0:00:10.1]} 35... Nd3 {[%clk 0:00:18.7]} 36.
Nc2 {[%clk 0:00:07.8]} 36... Ne5 {[%clk 0:00:18.2]} 37. Be2 {[%clk 0:00:06.5]}
37... Nc6 {[%clk 0:00:17.5]} 38. Rd6 {[%clk 0:00:06.3]} 38... Kf8 {[%clk
0:00:13.6]} 39. Bf3 {[%clk 0:00:05.5]} 39... b4+ {[%clk 0:00:09.9]} 40. Nxb4
{[%clk 0:00:05.3]} 40... Nxb4 {[%clk 0:00:10.8]} 41. Kxb4 {[%clk 0:00:05.9]}
41... a5+ {[%clk 0:00:08.9]} 42. Kc3 {[%clk 0:00:03.8]} 42... Rb8 {[%clk
0:00:09.3]} 43. Bd1 {[%clk 0:00:02.9]} 43... Rb1 {[%clk 0:00:08.8]} 44. Bc2
{[%clk 0:00:01.6]} 44... Rc1 {[%clk 0:00:09]} 0-1

[Event "Early-Titled-Tuesday-Blitz-March-19-2024"]
[Site "Chess.com"]
[Date "2024.03.19"]
[Round "1"]
[White "ragnaroek66"]
[Black "ViIIagra"]
[Result "0-1"]
[WhiteElo "2510"]
[BlackElo "2912"]
[TimeControl "180+1"]
[EndTime "8:07:56 PDT"]
[Termination "ViIIagra won by resignation"]

1. d4 {[%clk 0:03:00.9]} 1... d6 {[%clk 0:02:58.1]} 2. c4 {[%clk 0:03:00.3]}
2... e5 {[%clk 0:02:57]} 3. d5 {[%clk 0:02:59.8]} 3... f5 {[%clk 0:02:56.5]} 4.
e4 {[%clk 0:02:59.9]} 4... Nf6 {[%clk 0:02:56.3]} 5. exf5 {[%clk 0:02:59.7]}
5... Bxf5 {[%clk 0:02:56.1]} 6. Nc3 {[%clk 0:03:00.2]} 6... Na6 {[%clk
0:02:52.8]} 7. Nge2 {[%clk 0:02:59.1]} 7... Bg6 {[%clk 0:02:38]} 8. Ng3 {[%clk
0:02:56.5]} 8... Nc5 {[%clk 0:01:52.7]} 9. Bg5 {[%clk 0:02:41]} 9... a5 {[%clk
0:01:48.8]} 10. f3 {[%clk 0:02:27.3]} 10... Qd7 {[%clk 0:01:45.9]} 11. Be2
{[%clk 0:02:24.9]} 11... Be7 {[%clk 0:01:46.2]} 12. Be3 {[%clk 0:02:21.7]} 12...
O-O {[%clk 0:01:32.6]} 13. O-O {[%clk 0:02:20.7]} 13... b6 {[%clk 0:01:19.4]}
14. h3 {[%clk 0:02:06.2]} 14... Nh5 {[%clk 0:01:17.2]} 15. Nxh5 {[%clk
0:01:59.5]} 15... Bxh5 {[%clk 0:01:18.1]} 16. Qd2 {[%clk 0:01:35.2]} 16... Bh4
{[%clk 0:01:14.8]} 17. Bg5 {[%clk 0:01:29.4]} 17... Bxg5 {[%clk 0:01:11.6]} 18.
Qxg5 {[%clk 0:01:30.3]} 18... Rf5 {[%clk 0:01:12.4]} 19. Qe3 {[%clk 0:01:29.6]}
19... Rf4 {[%clk 0:01:12.4]} 20. Bd1 {[%clk 0:01:23]} 20... Raf8 {[%clk
0:01:11.2]} 21. Ne2 {[%clk 0:01:22.6]} 21... Rxc4 {[%clk 0:01:10.6]} 22. b3
{[%clk 0:01:18.4]} 22... Rh4 {[%clk 0:01:10.6]} 23. Bc2 {[%clk 0:01:16.8]} 23...
Qd8 {[%clk 0:01:04.7]} 24. a3 {[%clk 0:01:13.3]} 24... Bg6 {[%clk 0:01:04.3]}
25. Bxg6 {[%clk 0:01:10.3]} 25... hxg6 {[%clk 0:01:05.2]} 26. Rab1 {[%clk
0:01:09.8]} 26... a4 {[%clk 0:01:02.6]} 27. b4 {[%clk 0:01:05.9]} 27... Nb3
{[%clk 0:01:03]} 28. Nc3 {[%clk 0:01:05.9]} 28... Nd4 {[%clk 0:00:59.5]} 29.
Nxa4 {[%clk 0:01:04.2]} 29... Qa8 {[%clk 0:00:55.5]} 30. Nb2 {[%clk 0:01:01.1]}
30... Qxd5 {[%clk 0:00:54.9]} 31. Rbc1 {[%clk 0:00:58.4]} 31... c5 {[%clk
0:00:51.7]} 32. Na4 {[%clk 0:00:48.2]} 32... b5 {[%clk 0:00:50.2]} 33. Nc3
{[%clk 0:00:48]} 33... Qe6 {[%clk 0:00:39.9]} 34. bxc5 {[%clk 0:00:43.7]} 34...
dxc5 {[%clk 0:00:40.8]} 35. Rb1 {[%clk 0:00:42.6]} 35... b4 {[%clk 0:00:37]} 36.
Ne4 {[%clk 0:00:37.4]} 36... Qe7 {[%clk 0:00:22.3]} 37. Rfc1 {[%clk 0:00:32.7]}
37... Nxf3+ {[%clk 0:00:18.1]} 38. gxf3 {[%clk 0:00:31.3]} 38... Rxh3 {[%clk
0:00:18.8]} 39. Qg5 {[%clk 0:00:25.2]} 39... Qxg5+ {[%clk 0:00:17.3]} 40. Nxg5
{[%clk 0:00:26.1]} 40... Rg3+ {[%clk 0:00:18.2]} 41. Kf2 {[%clk 0:00:26.9]}
41... Rxg5 {[%clk 0:00:19.1]} 42. Rxc5 {[%clk 0:00:27]} 42... bxa3 {[%clk
0:00:18.8]} 43. Ra1 {[%clk 0:00:27.5]} 43... Rxf3+ {[%clk 0:00:14.7]} 44. Kxf3
{[%clk 0:00:24.2]} 44... e4+ {[%clk 0:00:15.4]} 45. Kxe4 {[%clk 0:00:24.8]}
45... Rxc5 {[%clk 0:00:16.3]} 46. Rxa3 {[%clk 0:00:25.5]} 46... Rf5 {[%clk
0:00:17]} 47. Rg3 {[%clk 0:00:22.8]} 47... Kf7 {[%clk 0:00:16.5]} 48. Rg1 {[%clk
0:00:22.7]} 48... Kf6 {[%clk 0:00:16.2]} 49. Rg2 {[%clk 0:00:21.9]} 49... g5
{[%clk 0:00:16.1]} 50. Rg1 {[%clk 0:00:22.2]} 50... Rf4+ {[%clk 0:00:16.8]} 51.
Ke3 {[%clk 0:00:22.3]} 51... Kf5 {[%clk 0:00:17.5]} 52. Rg2 {[%clk 0:00:21.7]}
52... g4 {[%clk 0:00:17.2]} 53. Rg3 {[%clk 0:00:20.6]} 53... g5 {[%clk
0:00:16.1]} 54. Ke2 {[%clk 0:00:20.6]} 54... Kg6 {[%clk 0:00:16.1]} 55. Ke3
{[%clk 0:00:20.4]} 55... Kh5 {[%clk 0:00:15.8]} 56. Ke2 {[%clk 0:00:20.8]} 56...
Kh4 {[%clk 0:00:16.2]} 57. Rg1 {[%clk 0:00:21.1]} 57... g3 {[%clk 0:00:16.7]}
58. Rh1+ {[%clk 0:00:19.3]} 58... Kg4 {[%clk 0:00:17.3]} 59. Rg1 {[%clk
0:00:19.6]} 59... Kh3 {[%clk 0:00:17.5]} 60. Ke3 {[%clk 0:00:19.6]} 60... g2
{[%clk 0:00:16.8]} 0-1

[Event "Early-Titled-Tuesday-Blitz-March-19-2024"]
[Site "Chess.com"]
[Date "2024.03.19"]
[Round "1"]
[White "stollenmonster"]
[Black "Schattman"]
[Result "1-0"]
[WhiteElo "2914"]
[BlackElo "2511"]
[TimeControl "180+1"]
[EndTime "8:07:58 PDT"]
[Termination "stollenmonster won on time"]

1. e4 {[%clk 0:03:00.9]} 1... c5 {[%clk 0:03:00.3]} 2. Nf3 {[%clk 0:03:00.7]}
2... e6 {[%clk 0:03:00.2]} 3. Be2 {[%clk 0:03:00.4]} 3... Nc6 {[%clk 0:02:57.3]}
4. c4 {[%clk 0:03:00.4]} 4... Nf6 {[%clk 0:02:52.5]} 5. Nc3 {[%clk 0:03:00.7]}
5... Nd4 {[%clk 0:02:49.1]} 6. e5 {[%clk 0:03:00.4]} 6... Ng8 {[%clk 0:02:39.5]}
7. Nxd4 {[%clk 0:02:59.4]} 7... cxd4 {[%clk 0:02:39.5]} 8. Ne4 {[%clk
0:03:00.1]} 8... f5 {[%clk 0:02:37]} 9. exf6 {[%clk 0:02:57.5]} 9... Nxf6 {[%clk
0:02:36.4]} 10. d3 {[%clk 0:02:57.1]} 10... Nxe4 {[%clk 0:02:29.7]} 11. dxe4
{[%clk 0:02:56]} 11... e5 {[%clk 0:02:29.5]} 12. f4 {[%clk 0:02:56]} 12... d6
{[%clk 0:02:22.5]} 13. O-O {[%clk 0:02:51]} 13... Be7 {[%clk 0:02:19.3]} 14.
fxe5 {[%clk 0:02:50.9]} 14... dxe5 {[%clk 0:02:18.9]} 15. Bh5+ {[%clk
0:02:50.1]} 15... g6 {[%clk 0:02:15.1]} 16. Bh6 {[%clk 0:02:20.4]} 16... Be6
{[%clk 0:01:49.2]} 17. Bg4 {[%clk 0:02:08.9]} 17... Qd7 {[%clk 0:01:42.2]} 18.
Bxe6 {[%clk 0:02:09]} 18... Qxe6 {[%clk 0:01:42.3]} 19. Qa4+ {[%clk 0:02:09.1]}
19... Kd8 {[%clk 0:01:34.9]} 20. c5 {[%clk 0:02:01.6]} 20... Rg8 {[%clk
0:01:26.2]} 21. c6 {[%clk 0:01:50.2]} 21... b6 {[%clk 0:01:01.3]} 22. Rac1
{[%clk 0:01:28.3]} 22... Kc7 {[%clk 0:00:59.8]} 23. Qa6 {[%clk 0:01:18.6]} 23...
Rgb8 {[%clk 0:00:52.9]} 24. Bd2 {[%clk 0:01:13.9]} 24... h5 {[%clk 0:00:30.6]}
25. h3 {[%clk 0:01:10.2]} 25... h4 {[%clk 0:00:30.4]} 26. a4 {[%clk 0:01:06.2]}
26... g5 {[%clk 0:00:26.8]} 27. Rf5 {[%clk 0:01:04.8]} 27... g4 {[%clk
0:00:22.1]} 28. hxg4 {[%clk 0:01:02.3]} 28... Qg6 {[%clk 0:00:19.9]} 29. g5
{[%clk 0:00:53.3]} 29... h3 {[%clk 0:00:19.2]} 30. gxh3 {[%clk 0:00:49.3]} 30...
Qe6 {[%clk 0:00:15.6]} 31. Rcf1 {[%clk 0:00:44.8]} 31... Qb3 {[%clk 0:00:14.9]}
32. Qe2 {[%clk 0:00:15.6]} 32... Qg3+ {[%clk 0:00:11.2]} 33. Qg2 {[%clk
0:00:15.7]} 33... Qxg2+ {[%clk 0:00:11.3]} 34. Kxg2 {[%clk 0:00:16.6]} 34...
Kxc6 {[%clk 0:00:11.9]} 35. h4 {[%clk 0:00:16.7]} 35... Rh8 {[%clk 0:00:09.2]}
36. Kg3 {[%clk 0:00:16.6]} 36... Bd6 {[%clk 0:00:09.1]} 37. Rf6 {[%clk
0:00:16.3]} 37... Kd7 {[%clk 0:00:08.4]} 38. Rf7+ {[%clk 0:00:16.3]} 38... Kc6
{[%clk 0:00:08.5]} 39. R1f6 {[%clk 0:00:17]} 39... a5 {[%clk 0:00:08.4]} 40. g6
{[%clk 0:00:16.5]} 40... Rab8 {[%clk 0:00:07.8]} 41. Kg4 {[%clk 0:00:16.6]}
41... b5 {[%clk 0:00:07.5]} 42. axb5+ {[%clk 0:00:15.2]} 42... Rxb5 {[%clk
0:00:07.6]} 43. g7 {[%clk 0:00:15.8]} 43... Rg8 {[%clk 0:00:06.3]} 44. Bh6
{[%clk 0:00:15.7]} 44... d3 {[%clk 0:00:04.4]} 45. Rf8 {[%clk 0:00:11.2]} 1-0